[Event "*** Titled Tuesday Blitz"]
[Site "Chess.com"]
[Date "2020.11.03"]
[Round "9"]
[White "WPWPWP-2015"]
[Black "penguingm1"]
[Result "1-0"]
[WhiteElo "2534"]
[BlackElo "2804"]
[TimeControl "180+1"]
[EndTime "11:50:11 PST"]
[Termination "WPWPWP-2015 won by checkmate"]

1. e4 {[%clk 0:03:00.1]} 1... b5 {[%clk 0:03:00.3]} 2. a4 {[%clk 0:02:49.8]}
2... Bb7 {[%clk 0:02:54.2]} 3. d3 {[%clk 0:02:46.3]} 3... bxa4 {[%clk
0:02:50.6]} 4. Nc3 {[%clk 0:02:45.2]} 4... a3 {[%clk 0:02:50]} 5. bxa3 {[%clk
0:02:37.2]} 5... g6 {[%clk 0:02:43.6]} 6. Rb1 {[%clk 0:02:35.6]} 6... Bc6 {[%clk
0:02:43.2]} 7. Bb2 {[%clk 0:02:32.2]} 7... Bg7 {[%clk 0:02:43.5]} 8. h4 {[%clk
0:02:30]} 8... Nf6 {[%clk 0:02:41.6]} 9. Be2 {[%clk 0:02:28.5]} 9... d6 {[%clk
0:02:40.7]} 10. h5 {[%clk 0:02:28]} 10... Nxh5 {[%clk 0:02:36.1]} 11. Bxh5
{[%clk 0:02:26.9]} 11... gxh5 {[%clk 0:02:36.4]} 12. Qxh5 {[%clk 0:02:24.3]}
12... Nd7 {[%clk 0:02:36.8]} 13. Nf3 {[%clk 0:02:21.3]} 13... h6 {[%clk
0:02:15.3]} 14. O-O {[%clk 0:02:10.1]} 14... e6 {[%clk 0:02:08.8]} 15. Ne2
{[%clk 0:02:07.7]} 15... Nf6 {[%clk 0:01:33.1]} 16. Qh4 {[%clk 0:02:05.5]} 16...
O-O {[%clk 0:01:31.2]} 17. Nf4 {[%clk 0:01:54.7]} 17... e5 {[%clk 0:01:24.9]}
18. Ne2 {[%clk 0:01:32.8]} 18... Re8 {[%clk 0:01:18.8]} 19. Ng3 {[%clk
0:01:29.3]} 19... Bd7 {[%clk 0:01:19]} 20. Bc1 {[%clk 0:01:27.4]} 20... Ng4
{[%clk 0:01:14.5]} 21. Qh5 {[%clk 0:01:24.1]} 21... Qf6 {[%clk 0:01:05.9]} 22.
Nh4 {[%clk 0:01:10.2]} 22... Kh7 {[%clk 0:00:55.4]} 23. Ngf5 {[%clk 0:01:05.6]}
23... Bxf5 {[%clk 0:00:49.9]} 24. exf5 {[%clk 0:01:01]} 24... Nxf2 {[%clk
0:00:22.6]} 25. Rxf2 {[%clk 0:00:58.8]} 25... Rab8 {[%clk 0:00:23]} 26. Rb4
{[%clk 0:00:53]} 26... Rxb4 {[%clk 0:00:12.1]} 27. axb4 {[%clk 0:00:53.9]} 27...
e4 {[%clk 0:00:13]} 28. dxe4 {[%clk 0:00:26.7]} 28... Rxe4 {[%clk 0:00:13.9]}
29. Nf3 {[%clk 0:00:25.9]} 29... Rxb4 {[%clk 0:00:14.1]} 30. Be3 {[%clk
0:00:23.7]} 30... Re4 {[%clk 0:00:09.8]} 31. Bd4 {[%clk 0:00:16.2]} 31... Qe7
{[%clk 0:00:02.3]} 32. f6 {[%clk 0:00:15.3]} 32... Qe6 {[%clk 0:00:01.7]} 33.
fxg7 {[%clk 0:00:14.6]} 33... Kg8 {[%clk 0:00:01.7]} 34. Qh3 {[%clk 0:00:11.6]}
34... Qxh3 {[%clk 0:00:01.6]} 35. gxh3 {[%clk 0:00:11.6]} 35... a5 {[%clk
0:00:02.5]} 36. Kf1 {[%clk 0:00:10.7]} 36... a4 {[%clk 0:00:03.1]} 37. Re2
{[%clk 0:00:11.1]} 37... f5 {[%clk 0:00:01.6]} 38. Rxe4 {[%clk 0:00:08.5]} 38...
fxe4 {[%clk 0:00:02.5]} 39. Nd2 {[%clk 0:00:08.4]} 39... c5 {[%clk 0:00:03.2]}
40. Bb2 {[%clk 0:00:07.1]} 40... d5 {[%clk 0:00:03.5]} 41. c4 {[%clk 0:00:07.1]}
41... e3 {[%clk 0:00:03.3]} 42. Nf3 {[%clk 0:00:06.2]} 42... d4 {[%clk
0:00:04.2]} 43. Ke2 {[%clk 0:00:06]} 43... Kxg7 {[%clk 0:00:04.3]} 44. Nxd4
{[%clk 0:00:05.5]} 44... cxd4 {[%clk 0:00:05.2]} 45. Bxd4+ {[%clk 0:00:05.6]}
45... Kg6 {[%clk 0:00:05.9]} 46. Kxe3 {[%clk 0:00:06.1]} 46... Kf5 {[%clk
0:00:05.9]} 47. Kd3 {[%clk 0:00:06.5]} 47... h5 {[%clk 0:00:06.1]} 48. Bb2
{[%clk 0:00:06.6]} 48... Kf4 {[%clk 0:00:06.3]} 49. c5 {[%clk 0:00:06.7]} 49...
Kf5 {[%clk 0:00:06.8]} 50. Kc4 {[%clk 0:00:05.6]} 50... Ke6 {[%clk 0:00:07.4]}
51. Kb5 {[%clk 0:00:05.8]} 51... a3 {[%clk 0:00:08]} 52. Bxa3 {[%clk 0:00:05.7]}
52... Kf5 {[%clk 0:00:08.6]} 53. c6 {[%clk 0:00:05.6]} 53... Kg5 {[%clk
0:00:09.2]} 54. c7 {[%clk 0:00:06]} 54... Kf4 {[%clk 0:00:07.9]} 55. c8=Q {[%clk
0:00:05.9]} 55... Kg3 {[%clk 0:00:08.7]} 56. Bd6+ {[%clk 0:00:05.2]} 56... Kh4
{[%clk 0:00:09.6]} 57. Qd8+ {[%clk 0:00:04.8]} 57... Kxh3 {[%clk 0:00:08.3]} 58.
Be7 {[%clk 0:00:05.1]} 58... Kg2 {[%clk 0:00:07.9]} 59. Bh4 {[%clk 0:00:04.9]}
59... Kh2 {[%clk 0:00:07]} 60. Kc4 {[%clk 0:00:05.1]} 60... Kh1 {[%clk
0:00:07.9]} 61. Kd3 {[%clk 0:00:05.2]} 61... Kh2 {[%clk 0:00:08.8]} 62. Qg5
{[%clk 0:00:04.8]} 62... Kh1 {[%clk 0:00:09.7]} 63. Ke2 {[%clk 0:00:05.1]} 63...
Kh2 {[%clk 0:00:10.6]} 64. Kf2 {[%clk 0:00:05.4]} 64... Kh3 {[%clk 0:00:11.5]}
65. Qg3# {[%clk 0:00:05.4]} 1-0

[Event "*** Titled Tuesday Blitz"]
[Site "Chess.com"]
[Date "2020.11.03"]
[Round "9"]
[White "GoltsevDmitry2000"]
[Black "hansen"]
[Result "1-0"]
[WhiteElo "2686"]
[BlackElo "2913"]
[TimeControl "180+1"]
[EndTime "11:50:11 PST"]
[Termination "GoltsevDmitry2000 won on time"]

1. e4 {[%clk 0:03:00.4]} 1... c5 {[%clk 0:02:56.2]} 2. Nf3 {[%clk 0:03:00.4]}
2... e6 {[%clk 0:02:56.3]} 3. d4 {[%clk 0:03:00.7]} 3... cxd4 {[%clk 0:02:57.2]}
4. Nxd4 {[%clk 0:03:01.6]} 4... a6 {[%clk 0:02:57.7]} 5. Nc3 {[%clk 0:03:01.5]}
5... Qc7 {[%clk 0:02:58.1]} 6. Be2 {[%clk 0:03:01.5]} 6... Nf6 {[%clk
0:02:58.5]} 7. O-O {[%clk 0:03:01.3]} 7... Bb4 {[%clk 0:02:59]} 8. Qd3 {[%clk
0:02:58.3]} 8... Nc6 {[%clk 0:02:59.1]} 9. a3 {[%clk 0:02:52.3]} 9... Be7 {[%clk
0:02:46]} 10. Nxc6 {[%clk 0:02:49.7]} 10... dxc6 {[%clk 0:02:41.5]} 11. Be3
{[%clk 0:02:48.4]} 11... e5 {[%clk 0:02:40.7]} 12. f3 {[%clk 0:02:46.1]} 12...
b5 {[%clk 0:02:40]} 13. Rad1 {[%clk 0:02:42.9]} 13... O-O {[%clk 0:02:39.5]} 14.
Bf2 {[%clk 0:02:41]} 14... Be6 {[%clk 0:02:38.4]} 15. Qe3 {[%clk 0:02:40.9]}
15... c5 {[%clk 0:02:36.6]} 16. Rd2 {[%clk 0:02:38]} 16... c4 {[%clk 0:02:33.2]}
17. Rfd1 {[%clk 0:02:35.7]} 17... Rfc8 {[%clk 0:02:32.9]} 18. Qb6 {[%clk
0:02:33.3]} 18... Qxb6 {[%clk 0:02:20.9]} 19. Bxb6 {[%clk 0:02:34.2]} 19... h5
{[%clk 0:02:21.5]} 20. Kf2 {[%clk 0:02:29]} 20... h4 {[%clk 0:02:19.5]} 21. Be3
{[%clk 0:02:19.7]} 21... Rab8 {[%clk 0:02:15.9]} 22. Kf1 {[%clk 0:02:13.9]}
22... a5 {[%clk 0:02:15]} 23. Bg5 {[%clk 0:02:08.1]} 23... h3 {[%clk 0:02:11.1]}
24. Bxf6 {[%clk 0:02:06]} 24... hxg2+ {[%clk 0:02:08.7]} 25. Kxg2 {[%clk
0:02:06]} 25... Bxf6 {[%clk 0:02:09.6]} 26. Nd5 {[%clk 0:02:06.5]} 26... Bg5
{[%clk 0:02:10]} 27. Bf1 {[%clk 0:01:59.3]} 27... Bxd2 {[%clk 0:01:14.3]} 28.
Ne7+ {[%clk 0:01:51.7]} 28... Kh7 {[%clk 0:01:12.1]} 29. Nxc8 {[%clk 0:01:51.3]}
29... c3 {[%clk 0:01:12.6]} 30. bxc3 {[%clk 0:01:48.1]} 30... Bxc3 {[%clk
0:01:11.3]} 31. Ne7 {[%clk 0:01:44.7]} 31... a4 {[%clk 0:00:58]} 32. Nc6 {[%clk
0:01:39.1]} 32... Rb6 {[%clk 0:00:52.4]} 33. Na7 {[%clk 0:01:33.1]} 33... b4
{[%clk 0:00:47.4]} 34. Nb5 {[%clk 0:01:05.1]} 34... Rxb5 {[%clk 0:00:47.1]} 35.
Bxb5 {[%clk 0:01:04.4]} 35... bxa3 {[%clk 0:00:47.6]} 36. Bxa4 {[%clk
0:00:57.6]} 36... a2 {[%clk 0:00:47.1]} 37. Kf2 {[%clk 0:00:50.1]} 37... Kh6
{[%clk 0:00:45.2]} 38. Ke3 {[%clk 0:00:49.2]} 38... Kg5 {[%clk 0:00:42.9]} 39.
Rg1+ {[%clk 0:00:41.9]} 39... Kh4 {[%clk 0:00:42.7]} 40. Kd3 {[%clk 0:00:40.6]}
40... a1=Q {[%clk 0:00:38]} 41. Rxa1 {[%clk 0:00:41]} 41... Bxa1 {[%clk
0:00:38.9]} 42. c4 {[%clk 0:00:41.9]} 42... Bd4 {[%clk 0:00:38.7]} 43. f4 {[%clk
0:00:39]} 43... f6 {[%clk 0:00:38.2]} 44. f5 {[%clk 0:00:35.9]} 44... Bc8 {[%clk
0:00:35.8]} 45. Bc6 {[%clk 0:00:31.7]} 45... Kg4 {[%clk 0:00:27.1]} 46. Kc2
{[%clk 0:00:30.7]} 46... Ba6 {[%clk 0:00:22.2]} 47. Kb3 {[%clk 0:00:29.9]} 47...
Bc5 {[%clk 0:00:22.7]} 48. Bd5 {[%clk 0:00:29.2]} 48... Kg5 {[%clk 0:00:13.4]}
49. Ka4 {[%clk 0:00:28.9]} 49... g6 {[%clk 0:00:11.6]} 50. fxg6 {[%clk
0:00:25.3]} 50... Kxg6 {[%clk 0:00:12]} 51. Ka5 {[%clk 0:00:25.7]} 51... Bc8
{[%clk 0:00:12.6]} 52. Kb5 {[%clk 0:00:25.5]} 52... Bg1 {[%clk 0:00:11.1]} 53.
Kc6 {[%clk 0:00:10.2]} 53... f5 {[%clk 0:00:10.8]} 54. exf5+ {[%clk 0:00:09.5]}
54... Kxf5 {[%clk 0:00:10.3]} 55. Kd6 {[%clk 0:00:05]} 55... Bxh2 {[%clk
0:00:04.2]} 56. Kc7 {[%clk 0:00:05.2]} 1-0

[Event "*** Titled Tuesday Blitz"]
[Site "Chess.com"]
[Date "2020.11.03"]
[Round "9"]
[White "GMG"]
[Black "Jospem"]
[Result "0-1"]
[WhiteElo "2708"]
[BlackElo "2985"]
[TimeControl "180+1"]
[EndTime "11:50:13 PST"]
[Termination "Jospem won on time"]

1. Nf3 {[%clk 0:03:00.9]} 1... c5 {[%clk 0:03:00]} 2. c4 {[%clk 0:03:00.3]} 2...
Nc6 {[%clk 0:03:00.4]} 3. Nc3 {[%clk 0:03:00.5]} 3... g6 {[%clk 0:03:00.4]} 4.
e3 {[%clk 0:03:00.6]} 4... Bg7 {[%clk 0:03:00.9]} 5. d4 {[%clk 0:03:01.2]} 5...
d6 {[%clk 0:03:01.4]} 6. d5 {[%clk 0:03:00.9]} 6... Nb4 {[%clk 0:02:59]} 7. Be2
{[%clk 0:02:59.8]} 7... Nf6 {[%clk 0:02:58.8]} 8. O-O {[%clk 0:02:57.6]} 8...
O-O {[%clk 0:02:58.3]} 9. a3 {[%clk 0:02:56.3]} 9... Na6 {[%clk 0:02:57.8]} 10.
Ne1 {[%clk 0:02:48.4]} 10... e5 {[%clk 0:02:57.8]} 11. Nd3 {[%clk 0:02:26.1]}
11... e4 {[%clk 0:02:46.9]} 12. Nf4 {[%clk 0:02:26.3]} 12... h5 {[%clk
0:02:45.5]} 13. Qc2 {[%clk 0:02:18.6]} 13... Bf5 {[%clk 0:02:44.2]} 14. Rb1
{[%clk 0:02:18.1]} 14... Nb8 {[%clk 0:02:37.8]} 15. b4 {[%clk 0:02:17.4]} 15...
Nbd7 {[%clk 0:02:35.8]} 16. Bb2 {[%clk 0:02:15.3]} 16... b6 {[%clk 0:02:29.9]}
17. Rfd1 {[%clk 0:02:09.8]} 17... Ne5 {[%clk 0:02:29]} 18. Qb3 {[%clk
0:01:54.8]} 18... h4 {[%clk 0:02:12.4]} 19. g3 {[%clk 0:01:49.9]} 19... g5
{[%clk 0:02:09.5]} 20. Ng2 {[%clk 0:01:45.8]} 20... Nf3+ {[%clk 0:02:00.1]} 21.
Bxf3 {[%clk 0:01:28.3]} 21... exf3 {[%clk 0:02:01]} 22. Ne1 {[%clk 0:01:29]}
22... Bxb1 {[%clk 0:02:00.6]} 23. Nxb1 {[%clk 0:01:26.2]} 23... Qd7 {[%clk
0:01:51]} 24. Nxf3 {[%clk 0:01:21.2]} 24... Qf5 {[%clk 0:01:34.8]} 25. Nbd2
{[%clk 0:01:18.5]} 25... h3 {[%clk 0:01:29.3]} 26. Bc3 {[%clk 0:01:07]} 26...
Ne4 {[%clk 0:01:12.4]} 27. Bxg7 {[%clk 0:01:05.1]} 27... Kxg7 {[%clk 0:01:05]}
28. Qb1 {[%clk 0:00:58.5]} 28... Rae8 {[%clk 0:00:59.3]} 29. Rf1 {[%clk
0:00:41.9]} 29... Qf6 {[%clk 0:00:39.5]} 30. Qd3 {[%clk 0:00:32.2]} 30... g4
{[%clk 0:00:16.5]} 31. Ne1 {[%clk 0:00:26.4]} 31... Qc3 {[%clk 0:00:10.8]} 32.
Qxc3+ {[%clk 0:00:26.4]} 32... Nxc3 {[%clk 0:00:11.2]} 33. Nd3 {[%clk
0:00:24.4]} 33... Ne4 {[%clk 0:00:10.7]} 34. Nxe4 {[%clk 0:00:19.8]} 34... Rxe4
{[%clk 0:00:11.6]} 35. Rc1 {[%clk 0:00:14.5]} 35... Rc8 {[%clk 0:00:10.5]} 36.
b5 {[%clk 0:00:14.2]} 36... a6 {[%clk 0:00:11.1]} 37. a4 {[%clk 0:00:11.3]}
37... axb5 {[%clk 0:00:11.5]} 38. axb5 {[%clk 0:00:12.2]} 38... Ra8 {[%clk
0:00:12.2]} 39. Kf1 {[%clk 0:00:06.3]} 39... Ra4 {[%clk 0:00:11]} 40. Nb2 {[%clk
0:00:06.7]} 40... Ra2 {[%clk 0:00:08.6]} 41. Rc2 {[%clk 0:00:05.6]} 41... Ra1+
{[%clk 0:00:07.2]} 42. Ke2 {[%clk 0:00:04.2]} 42... Rh1 {[%clk 0:00:07.7]} 43.
Nd3 {[%clk 0:00:03.2]} 43... Rxh2 {[%clk 0:00:08]} 44. Rc1 {[%clk 0:00:03.3]}
44... Rg2 {[%clk 0:00:06.3]} 45. Nf4 {[%clk 0:00:03.4]} 45... Rxc4 {[%clk
0:00:03.5]} 46. Rxc4 {[%clk 0:00:01.3]} 46... h2 {[%clk 0:00:04.1]} 47. Nxg2
{[%clk 0:00:01.9]} 47... h1=Q {[%clk 0:00:04.3]} 48. Rxg4+ {[%clk 0:00:02.8]}
48... Kf8 {[%clk 0:00:04.3]} 49. Nf4 {[%clk 0:00:03.3]} 49... Qb1 {[%clk
0:00:04.5]} 50. Kf3 {[%clk 0:00:02.9]} 50... Qxb5 {[%clk 0:00:04.7]} 51. Rh4
{[%clk 0:00:02]} 51... Qb1 {[%clk 0:00:04.5]} 52. Rh8+ {[%clk 0:00:02.1]} 52...
Ke7 {[%clk 0:00:05.1]} 53. Rb8 {[%clk 0:00:01.8]} 53... b5 {[%clk 0:00:05.6]}
54. Rb7+ {[%clk 0:00:02.3]} 54... Kf8 {[%clk 0:00:05.6]} 55. Rb8+ {[%clk
0:00:02.4]} 55... Kg7 {[%clk 0:00:04.4]} 56. Rd8 {[%clk 0:00:02.9]} 56... b4
{[%clk 0:00:03.9]} 57. Rxd6 {[%clk 0:00:03.4]} 57... Qd1+ {[%clk 0:00:03.6]} 58.
Kg2 {[%clk 0:00:03]} 58... b3 {[%clk 0:00:03.9]} 59. Rb6 {[%clk 0:00:02.4]}
59... c4 {[%clk 0:00:03.5]} 60. d6 {[%clk 0:00:02.9]} 60... c3 {[%clk
0:00:03.6]} 61. d7 {[%clk 0:00:03]} 61... Qxd7 {[%clk 0:00:03.3]} 62. Rxb3
{[%clk 0:00:03.2]} 62... Qc6+ {[%clk 0:00:04]} 0-1

[Event "*** Titled Tuesday Blitz"]
[Site "Chess.com"]
[Date "2020.11.03"]
[Round "9"]
[White "ChSalas"]
[Black "pedroholly22"]
[Result "1/2-1/2"]
[WhiteElo "2495"]
[BlackElo "2382"]
[TimeControl "180+1"]
[EndTime "11:50:16 PST"]
[Termination "Game drawn by repetition"]

1. d4 {[%clk 0:03:00.9]} 1... Nf6 {[%clk 0:02:57.2]} 2. Nf3 {[%clk 0:03:00.1]}
2... e6 {[%clk 0:02:56.6]} 3. Bg5 {[%clk 0:02:58.7]} 3... d5 {[%clk 0:02:55]} 4.
e3 {[%clk 0:02:54.4]} 4... Be7 {[%clk 0:02:53.1]} 5. Nbd2 {[%clk 0:02:54.3]}
5... O-O {[%clk 0:02:53]} 6. Bd3 {[%clk 0:02:51.2]} 6... b6 {[%clk 0:02:52.8]}
7. Ne5 {[%clk 0:02:45.9]} 7... Bb7 {[%clk 0:02:52]} 8. O-O {[%clk 0:02:41.3]}
8... Ne4 {[%clk 0:02:50.1]} 9. Bxe7 {[%clk 0:02:36]} 9... Qxe7 {[%clk 0:02:51]}
10. f3 {[%clk 0:02:22.8]} 10... Nxd2 {[%clk 0:02:47.5]} 11. Qxd2 {[%clk
0:02:22.8]} 11... Nd7 {[%clk 0:02:45.7]} 12. f4 {[%clk 0:02:09.1]} 12... f5
{[%clk 0:02:43.4]} 13. Nxd7 {[%clk 0:02:06]} 13... Qxd7 {[%clk 0:02:41.8]} 14.
c3 {[%clk 0:01:59.8]} 14... Rac8 {[%clk 0:02:37.3]} 15. Rf3 {[%clk 0:01:55.1]}
15... Rf6 {[%clk 0:02:32.7]} 16. Rh3 {[%clk 0:01:54.6]} 16... c5 {[%clk
0:02:29.6]} 17. g4 {[%clk 0:01:52.8]} 17... b5 {[%clk 0:02:02.1]} 18. g5 {[%clk
0:01:49.4]} 18... Rff8 {[%clk 0:01:59]} 19. Qe2 {[%clk 0:01:36]} 19... c4 {[%clk
0:01:55.3]} 20. Bc2 {[%clk 0:01:32.6]} 20... g6 {[%clk 0:01:54.1]} 21. Rh6
{[%clk 0:01:23.2]} 21... a5 {[%clk 0:01:49.9]} 22. h4 {[%clk 0:01:23.4]} 22...
Qg7 {[%clk 0:01:36.2]} 23. h5 {[%clk 0:01:21.4]} 23... Kf7 {[%clk 0:01:33.7]}
24. Kf2 {[%clk 0:01:16.1]} 24... Ke7 {[%clk 0:01:28.6]} 25. Rh1 {[%clk
0:01:15.8]} 25... Rf7 {[%clk 0:01:26.4]} 26. Qe1 {[%clk 0:01:03.7]} 26... Bc6
{[%clk 0:01:21.7]} 27. Ke2 {[%clk 0:01:02.4]} 27... Kd6 {[%clk 0:01:16.8]} 28.
Rh4 {[%clk 0:00:55.2]} 28... Rb8 {[%clk 0:01:14.8]} 29. a3 {[%clk 0:00:53.5]}
29... b4 {[%clk 0:01:13.9]} 30. axb4 {[%clk 0:00:51.7]} 30... axb4 {[%clk
0:01:14.8]} 31. cxb4 {[%clk 0:00:51.2]} 31... Rfb7 {[%clk 0:01:14.5]} 32. hxg6
{[%clk 0:00:44.7]} 32... hxg6 {[%clk 0:01:12.8]} 33. Qc3 {[%clk 0:00:17.8]}
33... Rxb4 {[%clk 0:01:04.2]} 34. Rh7 {[%clk 0:00:13.9]} 34... Qf8 {[%clk
0:00:56.9]} 35. Rh8 {[%clk 0:00:13.7]} 35... Qe7 {[%clk 0:00:50.4]} 36. R4h7
{[%clk 0:00:11.4]} 36... Rxb2 {[%clk 0:00:42.4]} 37. Rxe7 {[%clk 0:00:11]} 37...
Rxc2+ {[%clk 0:00:41.4]} 38. Qxc2 {[%clk 0:00:10.6]} 38... Rxh8 {[%clk 0:00:42]}
39. Ra7 {[%clk 0:00:10.4]} 39... Rh2+ {[%clk 0:00:41.7]} 40. Kd1 {[%clk
0:00:11.1]} 40... Rh1+ {[%clk 0:00:38.8]} 41. Kd2 {[%clk 0:00:10.2]} 41... Rh2+
{[%clk 0:00:38.9]} 42. Kc3 {[%clk 0:00:11.1]} 42... Rxc2+ {[%clk 0:00:39]} 43.
Kxc2 {[%clk 0:00:12]} 43... Bb5 {[%clk 0:00:39.2]} 44. Kc3 {[%clk 0:00:11.9]}
44... Be8 {[%clk 0:00:38.7]} 45. Kb4 {[%clk 0:00:12]} 45... Bd7 {[%clk
0:00:37.2]} 46. Ra8 {[%clk 0:00:10.7]} 46... Ke7 {[%clk 0:00:36.6]} 47. Kc5
{[%clk 0:00:10.5]} 47... Be8 {[%clk 0:00:34.3]} 48. Ra3 {[%clk 0:00:10.6]} 48...
Bd7 {[%clk 0:00:32.6]} 49. Kb6 {[%clk 0:00:11]} 49... Kd6 {[%clk 0:00:32.4]} 50.
Rc3 {[%clk 0:00:08.5]} 50... Ba4 {[%clk 0:00:31.6]} 51. Ka5 {[%clk 0:00:09.4]}
51... Bb3 {[%clk 0:00:31.5]} 52. Kb4 {[%clk 0:00:10.3]} 52... Kc6 {[%clk
0:00:31.4]} 53. Rc1 {[%clk 0:00:10.2]} 53... Kd7 {[%clk 0:00:30.8]} 54. Rh1
{[%clk 0:00:10.5]} 54... Ke7 {[%clk 0:00:30.8]} 55. Rh7+ {[%clk 0:00:10.7]}
55... Kf8 {[%clk 0:00:30.7]} 56. Rh6 {[%clk 0:00:11]} 56... Kg7 {[%clk
0:00:30.3]} 57. Rh2 {[%clk 0:00:10.4]} 57... Bd1 {[%clk 0:00:29.8]} 58. Kc3
{[%clk 0:00:09.4]} 58... Bb3 {[%clk 0:00:29.4]} 59. Rb2 {[%clk 0:00:09.6]} 59...
Kf7 {[%clk 0:00:28.9]} 60. Rb1 {[%clk 0:00:10.1]} 60... Ke7 {[%clk 0:00:29]} 61.
Ra1 {[%clk 0:00:11]} 61... Ke8 {[%clk 0:00:27.2]} 62. Ra7 {[%clk 0:00:11.4]}
62... Kf8 {[%clk 0:00:27.2]} 63. Kb4 {[%clk 0:00:11.8]} 63... Kg8 {[%clk
0:00:26.9]} 64. Rc7 {[%clk 0:00:12.3]} 64... Kf8 {[%clk 0:00:26.3]} 65. Rc5
{[%clk 0:00:12.8]} 65... Ke7 {[%clk 0:00:26.1]} 66. Kb5 {[%clk 0:00:13.3]} 66...
Kd6 {[%clk 0:00:25.3]} 67. Kb6 {[%clk 0:00:13.7]} 67... Kd7 {[%clk 0:00:24.2]}
68. Rc7+ {[%clk 0:00:13.6]} 68... Kd6 {[%clk 0:00:24.3]} 69. Rc6+ {[%clk
0:00:14]} 69... Kd7 {[%clk 0:00:24.3]} 70. Rc5 {[%clk 0:00:14.7]} 70... Kd6
{[%clk 0:00:24.4]} 71. Ka5 {[%clk 0:00:15.2]} 71... Kd7 {[%clk 0:00:23.6]} 72.
Kb4 {[%clk 0:00:16.1]} 72... Kd6 {[%clk 0:00:23.8]} 73. Kc3 {[%clk 0:00:16.8]}
73... Kd7 {[%clk 0:00:24.2]} 74. Ra5 {[%clk 0:00:17.3]} 74... Ke8 {[%clk
0:00:23.4]} 75. Ra7 {[%clk 0:00:17.4]} 75... Kf8 {[%clk 0:00:23.3]} 76. Kb4
{[%clk 0:00:17.8]} 76... Ke8 {[%clk 0:00:23.5]} 77. Kc3 {[%clk 0:00:17.7]}
1/2-1/2

[Event "*** Titled Tuesday Blitz"]
[Site "Chess.com"]
[Date "2020.11.03"]
[Round "9"]
[White "Michaelson_11"]
[Black "Akhayan"]
[Result "0-1"]
[WhiteElo "2140"]
[BlackElo "2260"]
[TimeControl "180+1"]
[EndTime "11:50:16 PST"]
[Termination "Akhayan won by resignation"]

1. e4 {[%clk 0:03:00.9]} 1... e6 {[%clk 0:02:59.6]} 2. d4 {[%clk 0:03:00]} 2...
d5 {[%clk 0:02:59]} 3. Nc3 {[%clk 0:03:00.9]} 3... Nf6 {[%clk 0:02:58.5]} 4. e5
{[%clk 0:03:00.6]} 4... Nfd7 {[%clk 0:02:58.1]} 5. f4 {[%clk 0:03:01.5]} 5... c5
{[%clk 0:02:57.6]} 6. Nf3 {[%clk 0:03:02.4]} 6... Nc6 {[%clk 0:02:57.9]} 7. Be3
{[%clk 0:03:00.8]} 7... Qb6 {[%clk 0:02:57.7]} 8. Na4 {[%clk 0:03:00.9]} 8...
Qa5+ {[%clk 0:02:57.1]} 9. c3 {[%clk 0:03:01.2]} 9... cxd4 {[%clk 0:02:56.6]}
10. b4 {[%clk 0:03:01.6]} 10... Nxb4 {[%clk 0:02:56.4]} 11. cxb4 {[%clk
0:03:00.7]} 11... Bxb4+ {[%clk 0:02:56.6]} 12. Bd2 {[%clk 0:03:01.2]} 12...
Bxd2+ {[%clk 0:02:56]} 13. Nxd2 {[%clk 0:03:02.1]} 13... b6 {[%clk 0:02:53.7]}
14. Bd3 {[%clk 0:03:02.2]} 14... Ba6 {[%clk 0:02:52.8]} 15. Nb2 {[%clk
0:03:01.1]} 15... Nc5 {[%clk 0:02:50.9]} 16. Bxa6 {[%clk 0:02:49.1]} 16... Qxa6
{[%clk 0:02:50.6]} 17. Qe2 {[%clk 0:02:47.4]} 17... Qa3 {[%clk 0:02:49.1]} 18.
Qb5+ {[%clk 0:02:14.7]} 18... Ke7 {[%clk 0:02:48.2]} 19. O-O {[%clk 0:01:50.8]}
19... Qe3+ {[%clk 0:02:47.1]} 20. Rf2 {[%clk 0:01:49.2]} 20... Rhc8 {[%clk
0:02:47.1]} 21. Nd1 {[%clk 0:01:19.1]} 21... Qd3 {[%clk 0:02:39.4]} 22. Qxd3
{[%clk 0:00:44.4]} 22... Nxd3 {[%clk 0:02:38.7]} 23. Rf3 {[%clk 0:00:44.6]}
23... Ne1 {[%clk 0:02:26.2]} 24. Rg3 {[%clk 0:00:38.1]} 24... g6 {[%clk
0:02:08.1]} 25. Kf2 {[%clk 0:00:35.5]} 25... Nc2 {[%clk 0:02:05.8]} 26. Rb1
{[%clk 0:00:34]} 26... Rc6 {[%clk 0:01:46.2]} 27. Rd3 {[%clk 0:00:30.3]} 27...
Rac8 {[%clk 0:01:43.8]} 28. Nb3 {[%clk 0:00:29.4]} 28... h5 {[%clk 0:01:30.1]}
29. Rb2 {[%clk 0:00:22.5]} 29... Nb4 {[%clk 0:01:11.7]} 30. Rxd4 {[%clk
0:00:22.3]} 30... Rc2+ {[%clk 0:01:11.9]} 31. Rxc2 {[%clk 0:00:19.5]} 31...
Rxc2+ {[%clk 0:01:11.9]} 32. Rd2 {[%clk 0:00:18.8]} 32... Rxd2+ {[%clk
0:00:46.2]} 33. Nxd2 {[%clk 0:00:19.7]} 33... Nxa2 {[%clk 0:00:46.5]} 34. Nb2
{[%clk 0:00:19.8]} 34... Nc3 {[%clk 0:00:44.9]} 35. Ke3 {[%clk 0:00:19.3]} 35...
Kd7 {[%clk 0:00:33]} 36. g3 {[%clk 0:00:17.5]} 36... Nb5 {[%clk 0:00:31]} 37.
Nb3 {[%clk 0:00:16.7]} 37... a5 {[%clk 0:00:29.5]} 38. Nd4 {[%clk 0:00:15.8]}
38... Nc3 {[%clk 0:00:26.1]} 39. Kd3 {[%clk 0:00:15.9]} 39... Ne4 {[%clk
0:00:25.7]} 40. Na4 {[%clk 0:00:13.1]} 40... Nc5+ {[%clk 0:00:17.9]} 41. Nxc5+
{[%clk 0:00:10.8]} 41... bxc5 {[%clk 0:00:18.3]} 42. Nb3 {[%clk 0:00:10.9]}
42... Kc6 {[%clk 0:00:18.3]} 43. Nxa5+ {[%clk 0:00:11]} 43... Kb5 {[%clk
0:00:18.7]} 44. Nb7 {[%clk 0:00:11.3]} 44... Kb4 {[%clk 0:00:16.3]} 45. Nd6
{[%clk 0:00:10.9]} 45... Ka3 {[%clk 0:00:15.7]} 46. Nxf7 {[%clk 0:00:10.5]}
46... Kb3 {[%clk 0:00:15.8]} 47. Nd8 {[%clk 0:00:08.1]} 47... c4+ {[%clk
0:00:14.8]} 48. Kd2 {[%clk 0:00:08.3]} 48... Kb2 {[%clk 0:00:15.1]} 49. Nxe6
{[%clk 0:00:07]} 49... c3+ {[%clk 0:00:15.5]} 50. Kd3 {[%clk 0:00:05.3]} 50...
c2 {[%clk 0:00:15.8]} 51. Kd4 {[%clk 0:00:02]} 51... c1=Q {[%clk 0:00:15.2]} 52.
Kxd5 {[%clk 0:00:02.9]} 52... Qd2+ {[%clk 0:00:14.1]} 53. Nd4 {[%clk 0:00:03.2]}
53... Qxh2 {[%clk 0:00:13.7]} 54. e6 {[%clk 0:00:03.6]} 54... Qg2+ {[%clk
0:00:11.2]} 55. Kd6 {[%clk 0:00:03.3]} 55... Qxg3 {[%clk 0:00:09]} 56. e7 {[%clk
0:00:03]} 56... Qxf4+ {[%clk 0:00:08.3]} 57. Kc6 {[%clk 0:00:02.8]} 57... Qe4+
{[%clk 0:00:06.8]} 58. Kc7 {[%clk 0:00:02.1]} 58... Qxe7+ {[%clk 0:00:06]} 0-1